Workbook

Sheet Tid-trykkfasthet
B1: Fasthet etter modenhetsprinsippet
B2: © ss 2016-02-25
B4: Tid [timer] | C4: Betong- temperatur [oC] | D4: Midlere betong- temperatur | E4: E | F4: E | G4: Aktiverings- energien | H4: Hastighets- funksjonen | I4: Modenhet [timer] | J4: Trykk- fasthet i konstr. [MPa] | K4: Trykk-fasthet ved 20oC. [MPa]
D5: [ C] | E5: T<20, herd | F5: T>20, herd
B6: 0 | C6: 18 | D6: =+C6 -> 18 | E6: =Innstillinger!$F$18+Innstillinger!$F$19*(20-D6) -> 32000 | F6: =Innstillinger!$F$18 -> 30000 | G6: =IF(D6>20,F6,E6) -> 32000 | H6: =+EXP((G6/8.314)*(1/293-1/(273+D6))) -> 0.9136719406 | I6: =H6*(B6) -> 0 | J6: =IF(I6<='Formfunksjon trykkfasthet'!$C$16,0,'Formfunksjon trykkfasthet'!$C$14*EXP('Formfunksjon trykkfasthet'!$C$15*(1-SQRT(672/('Tid-trykkfasthet'!I6-'Formfunksjon trykkfasthet'!$C$16))))) -> 0 | K6: =IF(B6<='Formfunksjon trykkfasthet'!$C$16,0,'Formfunksjon trykkfasthet'!$C$14*EXP('Formfunksjon trykkfasthet'!$C$15*(1-SQRT(672/('Tid-trykkfasthet'!B6-'Formfunksjon trykkfasthet'!$C$16))))) -> 0
B7: 2 | C7: 18 | D7: =+(C6+C7)/2 -> 18 | E7: =Innstillinger!$F$18+Innstillinger!$F$19*(20-D7) -> 32000 | F7: =Innstillinger!$F$18 -> 30000 | G7: =IF(D7>20,F7,E7) -> 32000 | H7: =+EXP((G7/8.314)*(1/293-1/(273+D7))) -> 0.9136719406 | I7: =IF((B7-B6)<0,0,I6+H7*(B7-B6)) -> 1.827343881 | J7: =IF(I7<='Formfunksjon trykkfasthet'!$C$16,0,'Formfunksjon trykkfasthet'!$C$14*EXP('Formfunksjon trykkfasthet'!$C$15*(1-SQRT(672/('Tid-trykkfasthet'!I7-'Formfunksjon trykkfasthet'!$C$16))))) -> 0 | K7: =IF(B7<='Formfunksjon trykkfasthet'!$C$16,0,'Formfunksjon trykkfasthet'!$C$14*EXP('Formfunksjon trykkfasthet'!$C$15*(1-SQRT(672/('Tid-trykkfasthet'!B7-'Formfunksjon trykkfasthet'!$C$16))))) -> 0
B8: 4 | C8: 19 | D8: 18.5 | E8: =Innstillinger!$F$18+Innstillinger!$F$19*(20-D8) -> 31500 | F8: =Innstillinger!$F$18 -> 30000 | G8: 31500 | H8: 0.9356250863 | I8: 3.698594054 | J8: =IF(I8<='Formfunksjon trykkfasthet'!$C$16,0,'Formfunksjon trykkfasthet'!$C$14*EXP('Formfunksjon trykkfasthet'!$C$15*(1-SQRT(672/('Tid-trykkfasthet'!I8-'Formfunksjon trykkfasthet'!$C$16))))) -> 0 | K8: =IF(B8<='Formfunksjon trykkfasthet'!$C$16,0,'Formfunksjon trykkfasthet'!$C$14*EXP('Formfunksjon trykkfasthet'!$C$15*(1-SQRT(672/('Tid-trykkfasthet'!B8-'Formfunksjon trykkfasthet'!$C$16))))) -> 0
B9: 6 | C9: 21 | D9: 20 | E9: =Innstillinger!$F$18+Innstillinger!$F$19*(20-D9) -> 30000 | F9: =Innstillinger!$F$18 -> 30000 | G9: 30000 | H9: 1 | I9: 5.698594054 | J9: =IF(I9<='Formfunksjon trykkfasthet'!$C$16,0,'Formfunksjon trykkfasthet'!$C$14*EXP('Formfunksjon trykkfasthet'!$C$15*(1-SQRT(672/('Tid-trykkfasthet'!I9-'Formfunksjon trykkfasthet'!$C$16))))) -> 0 | K9: =IF(B9<='Formfunksjon trykkfasthet'!$C$16,0,'Formfunksjon trykkfasthet'!$C$14*EXP('Formfunksjon trykkfasthet'!$C$15*(1-SQRT(672/('Tid-trykkfasthet'!B9-'Formfunksjon trykkfasthet'!$C$16))))) -> 0
B10: 8 | C10: 25 | D10: 23 | E10: =Innstillinger!$F$18+Innstillinger!$F$19*(20-D10) -> 27000 | F10: =Innstillinger!$F$18 -> 30000 | G10: 30000 | H10: 1.132940916 | I10: 7.964475887 | J10: =IF(I10<='Formfunksjon trykkfasthet'!$C$16,0,'Formfunksjon trykkfasthet'!$C$14*EXP('Formfunksjon trykkfasthet'!$C$15*(1-SQRT(672/('Tid-trykkfasthet'!I10-'Formfunksjon trykkfasthet'!$C$16))))) -> 5.407629342e-08 | K10: =IF(B10<='Formfunksjon trykkfasthet'!$C$16,0,'Formfunksjon trykkfasthet'!$C$14*EXP('Formfunksjon trykkfasthet'!$C$15*(1-SQRT(672/('Tid-trykkfasthet'!B10-'Formfunksjon trykkfasthet'!$C$16))))) -> 1.156383688e-06
B11: 10 | C11: 31 | D11: 28 | E11: =Innstillinger!$F$18+Innstillinger!$F$19*(20-D11) -> 22000 | F11: =Innstillinger!$F$18 -> 30000 | G11: 30000 | H11: 1.38723964 | I11: 10.73895517 | J11: =IF(I11<='Formfunksjon trykkfasthet'!$C$16,0,'Formfunksjon trykkfasthet'!$C$14*EXP('Formfunksjon trykkfasthet'!$C$15*(1-SQRT(672/('Tid-trykkfasthet'!I11-'Formfunksjon trykkfasthet'!$C$16))))) -> 1.658714282 | K11: =IF(B11<='Formfunksjon trykkfasthet'!$C$16,0,'Formfunksjon trykkfasthet'!$C$14*EXP('Formfunksjon trykkfasthet'!$C$15*(1-SQRT(672/('Tid-trykkfasthet'!B11-'Formfunksjon trykkfasthet'!$C$16))))) -> 0.8916140574
B12: 12 | C12: 36 | D12: 33.5 | E12: =Innstillinger!$F$18+Innstillinger!$F$19*(20-D12) -> 16500 | F12: =Innstillinger!$F$18 -> 30000 | G12: 30000 | H12: 1.720188711 | I12: 14.17933259 | J12: =IF(I12<='Formfunksjon trykkfasthet'!$C$16,0,'Formfunksjon trykkfasthet'!$C$14*EXP('Formfunksjon trykkfasthet'!$C$15*(1-SQRT(672/('Tid-trykkfasthet'!I12-'Formfunksjon trykkfasthet'!$C$16))))) -> 5.845583884 | K12: =IF(B12<='Formfunksjon trykkfasthet'!$C$16,0,'Formfunksjon trykkfasthet'!$C$14*EXP('Formfunksjon trykkfasthet'!$C$15*(1-SQRT(672/('Tid-trykkfasthet'!B12-'Formfunksjon trykkfasthet'!$C$16))))) -> 3.158455345
B13: 14 | C13: 40 | D13: 38 | E13: =Innstillinger!$F$18+Innstillinger!$F$19*(20-D13) -> 12000 | F13: =Innstillinger!$F$18 -> 30000 | G13: 30000 | H13: 2.039654375 | I13: 18.25864134 | J13: =IF(I13<='Formfunksjon trykkfasthet'!$C$16,0,'Formfunksjon trykkfasthet'!$C$14*EXP('Formfunksjon trykkfasthet'!$C$15*(1-SQRT(672/('Tid-trykkfasthet'!I13-'Formfunksjon trykkfasthet'!$C$16))))) -> 10.39663084 | K13: =IF(B13<='Formfunksjon trykkfasthet'!$C$16,0,'Formfunksjon trykkfasthet'!$C$14*EXP('Formfunksjon trykkfasthet'!$C$15*(1-SQRT(672/('Tid-trykkfasthet'!B13-'Formfunksjon trykkfasthet'!$C$16))))) -> 5.628262942
B14: 16 | C14: 42 | D14: 41 | E14: =Innstillinger!$F$18+Innstillinger!$F$19*(20-D14) -> 9000 | F14: =Innstillinger!$F$18 -> 30000 | G14: 30000 | H14: 2.278761499 | I14: 22.81616434 | J14: =IF(I14<='Formfunksjon trykkfasthet'!$C$16,0,'Formfunksjon trykkfasthet'!$C$14*EXP('Formfunksjon trykkfasthet'!$C$15*(1-SQRT(672/('Tid-trykkfasthet'!I14-'Formfunksjon trykkfasthet'!$C$16))))) -> 14.57998344 | K14: =IF(B14<='Formfunksjon trykkfasthet'!$C$16,0,'Formfunksjon trykkfasthet'!$C$14*EXP('Formfunksjon trykkfasthet'!$C$15*(1-SQRT(672/('Tid-trykkfasthet'!B14-'Formfunksjon trykkfasthet'!$C$16))))) -> 7.975015556
B15: 18 | C15: 42.5 | D15: 42.25 | E15: =Innstillinger!$F$18+Innstillinger!$F$19*(20-D15) -> 7750 | F15: =Innstillinger!$F$18 -> 30000 | G15: 30000 | H15: 2.38499644 | I15: 27.58615722 | J15: =IF(I15<='Formfunksjon trykkfasthet'!$C$16,0,'Formfunksjon trykkfasthet'!$C$14*EXP('Formfunksjon trykkfasthet'!$C$15*(1-SQRT(672/('Tid-trykkfasthet'!I15-'Formfunksjon trykkfasthet'!$C$16))))) -> 18.15476133 | K15: =IF(B15<='Formfunksjon trykkfasthet'!$C$16,0,'Formfunksjon trykkfasthet'!$C$14*EXP('Formfunksjon trykkfasthet'!$C$15*(1-SQRT(672/('Tid-trykkfasthet'!B15-'Formfunksjon trykkfasthet'!$C$16))))) -> 10.13186743
B16: 20 | C16: 42 | D16: 42.25 | E16: =Innstillinger!$F$18+Innstillinger!$F$19*(20-D16) -> 7750 | F16: =Innstillinger!$F$18 -> 30000 | G16: 30000 | H16: 2.38499644 | I16: 32.3561501 | J16: =IF(I16<='Formfunksjon trykkfasthet'!$C$16,0,'Formfunksjon trykkfasthet'!$C$14*EXP('Formfunksjon trykkfasthet'!$C$15*(1-SQRT(672/('Tid-trykkfasthet'!I16-'Formfunksjon trykkfasthet'!$C$16))))) -> 21.12610929 | K16: =IF(B16<='Formfunksjon trykkfasthet'!$C$16,0,'Formfunksjon trykkfasthet'!$C$14*EXP('Formfunksjon trykkfasthet'!$C$15*(1-SQRT(672/('Tid-trykkfasthet'!B16-'Formfunksjon trykkfasthet'!$C$16))))) -> 12.09871883
B17: 22 | C17: 41 | D17: 41.5 | E17: =Innstillinger!$F$18+Innstillinger!$F$19*(20-D17) -> 8500 | F17: =Innstillinger!$F$18 -> 30000 | G17: 30000 | H17: 2.320776373 | I17: 36.99770284 | J17: =IF(I17<='Formfunksjon trykkfasthet'!$C$16,0,'Formfunksjon trykkfasthet'!$C$14*EXP('Formfunksjon trykkfasthet'!$C$15*(1-SQRT(672/('Tid-trykkfasthet'!I17-'Formfunksjon trykkfasthet'!$C$16))))) -> 23.58566866 | K17: =IF(B17<='Formfunksjon trykkfasthet'!$C$16,0,'Formfunksjon trykkfasthet'!$C$14*EXP('Formfunksjon trykkfasthet'!$C$15*(1-SQRT(672/('Tid-trykkfasthet'!B17-'Formfunksjon trykkfasthet'!$C$16))))) -> 13.89279583
B18: 24 | C18: 39 | D18: =+(C17+C18)/2 -> 40 | E18: =Innstillinger!$F$18+Innstillinger!$F$19*(20-D18) -> 10000 | F18: =Innstillinger!$F$18 -> 30000 | G18: 30000 | H18: 2.196615188 | I18: 41.39093322 | J18: =IF(I18<='Formfunksjon trykkfasthet'!$C$16,0,'Formfunksjon trykkfasthet'!$C$14*EXP('Formfunksjon trykkfasthet'!$C$15*(1-SQRT(672/('Tid-trykkfasthet'!I18-'Formfunksjon trykkfasthet'!$C$16))))) -> 25.61119542 | K18: =IF(B18<='Formfunksjon trykkfasthet'!$C$16,0,'Formfunksjon trykkfasthet'!$C$14*EXP('Formfunksjon trykkfasthet'!$C$15*(1-SQRT(672/('Tid-trykkfasthet'!B18-'Formfunksjon trykkfasthet'!$C$16))))) -> 15.53436518
B19: 26 | C19: 37 | D19: 38 | E19: =Innstillinger!$F$18+Innstillinger!$F$19*(20-D19) -> 12000 | F19: =Innstillinger!$F$18 -> 30000 | G19: 30000 | H19: 2.039654375 | I19: 45.47024197 | J19: =IF(I19<='Formfunksjon trykkfasthet'!$C$16,0,'Formfunksjon trykkfasthet'!$C$14*EXP('Formfunksjon trykkfasthet'!$C$15*(1-SQRT(672/('Tid-trykkfasthet'!I19-'Formfunksjon trykkfasthet'!$C$16))))) -> 27.28163836 | K19: =IF(B19<='Formfunksjon trykkfasthet'!$C$16,0,'Formfunksjon trykkfasthet'!$C$14*EXP('Formfunksjon trykkfasthet'!$C$15*(1-SQRT(672/('Tid-trykkfasthet'!B19-'Formfunksjon trykkfasthet'!$C$16))))) -> 17.04246847
B20: 28 | C20: 35.5 | D20: 36.25 | E20: =Innstillinger!$F$18+Innstillinger!$F$19*(20-D20) -> 13750 | F20: =Innstillinger!$F$18 -> 30000 | G20: 30000 | H20: 1.910038977 | I20: 49.29031992 | J20: =IF(I20<='Formfunksjon trykkfasthet'!$C$16,0,'Formfunksjon trykkfasthet'!$C$14*EXP('Formfunksjon trykkfasthet'!$C$15*(1-SQRT(672/('Tid-trykkfasthet'!I20-'Formfunksjon trykkfasthet'!$C$16))))) -> 28.6945285 | K20: =IF(B20<='Formfunksjon trykkfasthet'!$C$16,0,'Formfunksjon trykkfasthet'!$C$14*EXP('Formfunksjon trykkfasthet'!$C$15*(1-SQRT(672/('Tid-trykkfasthet'!B20-'Formfunksjon trykkfasthet'!$C$16))))) -> 18.4338166
B21: 30 | C21: 34 | D21: 34.75 | E21: =Innstillinger!$F$18+Innstillinger!$F$19*(20-D21) -> 15250 | F21: =Innstillinger!$F$18 -> 30000 | G21: 30000 | H21: 1.804443337 | I21: 52.8992066 | J21: =IF(I21<='Formfunksjon trykkfasthet'!$C$16,0,'Formfunksjon trykkfasthet'!$C$14*EXP('Formfunksjon trykkfasthet'!$C$15*(1-SQRT(672/('Tid-trykkfasthet'!I21-'Formfunksjon trykkfasthet'!$C$16))))) -> 29.91552736 | K21: =IF(B21<='Formfunksjon trykkfasthet'!$C$16,0,'Formfunksjon trykkfasthet'!$C$14*EXP('Formfunksjon trykkfasthet'!$C$15*(1-SQRT(672/('Tid-trykkfasthet'!B21-'Formfunksjon trykkfasthet'!$C$16))))) -> 19.72271816
B22: 32 | C22: 33 | D22: 33.5 | E22: =Innstillinger!$F$18+Innstillinger!$F$19*(20-D22) -> 16500 | F22: =Innstillinger!$F$18 -> 30000 | G22: 30000 | H22: 1.720188711 | I22: 56.33958402 | J22: =IF(I22<='Formfunksjon trykkfasthet'!$C$16,0,'Formfunksjon trykkfasthet'!$C$14*EXP('Formfunksjon trykkfasthet'!$C$15*(1-SQRT(672/('Tid-trykkfasthet'!I22-'Formfunksjon trykkfasthet'!$C$16))))) -> 30.99072199 | K22: =IF(B22<='Formfunksjon trykkfasthet'!$C$16,0,'Formfunksjon trykkfasthet'!$C$14*EXP('Formfunksjon trykkfasthet'!$C$15*(1-SQRT(672/('Tid-trykkfasthet'!B22-'Formfunksjon trykkfasthet'!$C$16))))) -> 20.92132683
B23: 34 | C23: 32 | D23: 32.5 | E23: =Innstillinger!$F$18+Innstillinger!$F$19*(20-D23) -> 17500 | F23: =Innstillinger!$F$18 -> 30000 | G23: 30000 | H23: 1.655160102 | I23: 59.64990422 | J23: =IF(I23<='Formfunksjon trykkfasthet'!$C$16,0,'Formfunksjon trykkfasthet'!$C$14*EXP('Formfunksjon trykkfasthet'!$C$15*(1-SQRT(672/('Tid-trykkfasthet'!I23-'Formfunksjon trykkfasthet'!$C$16))))) -> 31.95360377 | K23: =IF(B23<='Formfunksjon trykkfasthet'!$C$16,0,'Formfunksjon trykkfasthet'!$C$14*EXP('Formfunksjon trykkfasthet'!$C$15*(1-SQRT(672/('Tid-trykkfasthet'!B23-'Formfunksjon trykkfasthet'!$C$16))))) -> 22.03995837
B24: 36 | C24: 31 | D24: 31.5 | E24: =Innstillinger!$F$18+Innstillinger!$F$19*(20-D24) -> 18500 | F24: =Innstillinger!$F$18 -> 30000 | G24: 30000 | H24: 1.592186729 | I24: 62.83427768 | J24: =IF(I24<='Formfunksjon trykkfasthet'!$C$16,0,'Formfunksjon trykkfasthet'!$C$14*EXP('Formfunksjon trykkfasthet'!$C$15*(1-SQRT(672/('Tid-trykkfasthet'!I24-'Formfunksjon trykkfasthet'!$C$16))))) -> 32.82103964 | K24: =IF(B24<='Formfunksjon trykkfasthet'!$C$16,0,'Formfunksjon trykkfasthet'!$C$14*EXP('Formfunksjon trykkfasthet'!$C$15*(1-SQRT(672/('Tid-trykkfasthet'!B24-'Formfunksjon trykkfasthet'!$C$16))))) -> 23.08739208
B25: 38 | C25: 30.5 | D25: 30.75 | E25: =Innstillinger!$F$18+Innstillinger!$F$19*(20-D25) -> 19250 | F25: =Innstillinger!$F$18 -> 30000 | G25: 30000 | H25: 1.546274883 | I25: 65.92682745 | J25: =IF(I25<='Formfunksjon trykkfasthet'!$C$16,0,'Formfunksjon trykkfasthet'!$C$14*EXP('Formfunksjon trykkfasthet'!$C$15*(1-SQRT(672/('Tid-trykkfasthet'!I25-'Formfunksjon trykkfasthet'!$C$16))))) -> 33.61402973 | K25: =IF(B25<='Formfunksjon trykkfasthet'!$C$16,0,'Formfunksjon trykkfasthet'!$C$14*EXP('Formfunksjon trykkfasthet'!$C$15*(1-SQRT(672/('Tid-trykkfasthet'!B25-'Formfunksjon trykkfasthet'!$C$16))))) -> 24.07113182
B26: 40 | C26: 30 | D26: 30.25 | E26: =Innstillinger!$F$18+Innstillinger!$F$19*(20-D26) -> 19750 | F26: =Innstillinger!$F$18 -> 30000 | G26: 30000 | H26: 1.516282943 | I26: 68.95939333 | J26: =IF(I26<='Formfunksjon trykkfasthet'!$C$16,0,'Formfunksjon trykkfasthet'!$C$14*EXP('Formfunksjon trykkfasthet'!$C$15*(1-SQRT(672/('Tid-trykkfasthet'!I26-'Formfunksjon trykkfasthet'!$C$16))))) -> 34.34893718 | K26: =IF(B26<='Formfunksjon trykkfasthet'!$C$16,0,'Formfunksjon trykkfasthet'!$C$14*EXP('Formfunksjon trykkfasthet'!$C$15*(1-SQRT(672/('Tid-trykkfasthet'!B26-'Formfunksjon trykkfasthet'!$C$16))))) -> 24.99762353
B27: 42 | C27: 29.5 | D27: 29.75 | E27: =Innstillinger!$F$18+Innstillinger!$F$19*(20-D27) -> 20250 | F27: =Innstillinger!$F$18 -> 30000 | G27: 30000 | H27: 1.486776542 | I27: 71.93294641 | J27: =IF(I27<='Formfunksjon trykkfasthet'!$C$16,0,'Formfunksjon trykkfasthet'!$C$14*EXP('Formfunksjon trykkfasthet'!$C$15*(1-SQRT(672/('Tid-trykkfasthet'!I27-'Formfunksjon trykkfasthet'!$C$16))))) -> 35.03223598 | K27: =IF(B27<='Formfunksjon trykkfasthet'!$C$16,0,'Formfunksjon trykkfasthet'!$C$14*EXP('Formfunksjon trykkfasthet'!$C$15*(1-SQRT(672/('Tid-trykkfasthet'!B27-'Formfunksjon trykkfasthet'!$C$16))))) -> 25.87243355
B28: 44 | C28: 29 | D28: 29.25 | E28: =Innstillinger!$F$18+Innstillinger!$F$19*(20-D28) -> 20750 | F28: =Innstillinger!$F$18 -> 30000 | G28: 30000 | H28: 1.457749544 | I28: 74.8484455 | J28: =IF(I28<='Formfunksjon trykkfasthet'!$C$16,0,'Formfunksjon trykkfasthet'!$C$14*EXP('Formfunksjon trykkfasthet'!$C$15*(1-SQRT(672/('Tid-trykkfasthet'!I28-'Formfunksjon trykkfasthet'!$C$16))))) -> 35.66942148 | K28: =IF(B28<='Formfunksjon trykkfasthet'!$C$16,0,'Formfunksjon trykkfasthet'!$C$14*EXP('Formfunksjon trykkfasthet'!$C$15*(1-SQRT(672/('Tid-trykkfasthet'!B28-'Formfunksjon trykkfasthet'!$C$16))))) -> 26.70039393
B29: 46 | C29: 28.5 | D29: 28.75 | E29: =Innstillinger!$F$18+Innstillinger!$F$19*(20-D29) -> 21250 | F29: =Innstillinger!$F$18 -> 30000 | G29: 30000 | H29: 1.429195866 | I29: 77.70683723 | J29: =IF(I29<='Formfunksjon trykkfasthet'!$C$16,0,'Formfunksjon trykkfasthet'!$C$14*EXP('Formfunksjon trykkfasthet'!$C$15*(1-SQRT(672/('Tid-trykkfasthet'!I29-'Formfunksjon trykkfasthet'!$C$16))))) -> 36.26519426 | K29: =IF(B29<='Formfunksjon trykkfasthet'!$C$16,0,'Formfunksjon trykkfasthet'!$C$14*EXP('Formfunksjon trykkfasthet'!$C$15*(1-SQRT(672/('Tid-trykkfasthet'!B29-'Formfunksjon trykkfasthet'!$C$16))))) -> 27.48572079
B30: 48 | C30: 28 | D30: 28.25 | E30: =Innstillinger!$F$18+Innstillinger!$F$19*(20-D30) -> 21750 | F30: =Innstillinger!$F$18 -> 30000 | G30: 30000 | H30: 1.401109474 | I30: 80.50905618 | J30: =IF(I30<='Formfunksjon trykkfasthet'!$C$16,0,'Formfunksjon trykkfasthet'!$C$14*EXP('Formfunksjon trykkfasthet'!$C$15*(1-SQRT(672/('Tid-trykkfasthet'!I30-'Formfunksjon trykkfasthet'!$C$16))))) -> 36.82360332 | K30: =IF(B30<='Formfunksjon trykkfasthet'!$C$16,0,'Formfunksjon trykkfasthet'!$C$14*EXP('Formfunksjon trykkfasthet'!$C$15*(1-SQRT(672/('Tid-trykkfasthet'!B30-'Formfunksjon trykkfasthet'!$C$16))))) -> 28.23211094
B31: 50 | C31: 27.5 | D31: =+(C30+C31)/2 -> 27.75 | E31: =Innstillinger!$F$18+Innstillinger!$F$19*(20-D31) -> 22250 | F31: =Innstillinger!$F$18 -> 30000 | G31: =IF(D31>20,F31,E31) -> 30000 | H31: =+EXP((G31/8.314)*(1/293-1/(273+D31))) -> 1.373484389 | I31: =IF((B31-B30)<0,0,I30+H31*(B31-B30)) -> 83.25602496 | J31: =IF(I31<='Formfunksjon trykkfasthet'!$C$16,0,'Formfunksjon trykkfasthet'!$C$14*EXP('Formfunksjon trykkfasthet'!$C$15*(1-SQRT(672/('Tid-trykkfasthet'!I31-'Formfunksjon trykkfasthet'!$C$16))))) -> 37.34815874 | K31: =IF(B31<='Formfunksjon trykkfasthet'!$C$16,0,'Formfunksjon trykkfasthet'!$C$14*EXP('Formfunksjon trykkfasthet'!$C$15*(1-SQRT(672/('Tid-trykkfasthet'!B31-'Formfunksjon trykkfasthet'!$C$16))))) -> 28.94282098
B32: 52 | C32: 27 | D32: 27.25 | E32: =Innstillinger!$F$18+Innstillinger!$F$19*(20-D32) -> 22750 | F32: =Innstillinger!$F$18 -> 30000 | G32: 30000 | H32: 1.346314682 | I32: =IF((B32-B31)<0,0,I31+H32*(B32-B31)) -> 85.94865432 | J32: =IF(I32<='Formfunksjon trykkfasthet'!$C$16,0,'Formfunksjon trykkfasthet'!$C$14*EXP('Formfunksjon trykkfasthet'!$C$15*(1-SQRT(672/('Tid-trykkfasthet'!I32-'Formfunksjon trykkfasthet'!$C$16))))) -> 37.84192134 | K32: =IF(B32<='Formfunksjon trykkfasthet'!$C$16,0,'Formfunksjon trykkfasthet'!$C$14*EXP('Formfunksjon trykkfasthet'!$C$15*(1-SQRT(672/('Tid-trykkfasthet'!B32-'Formfunksjon trykkfasthet'!$C$16))))) -> 29.62073245
B33: 54 | C33: 26.5 | D33: 26.75 | E33: =Innstillinger!$F$18+Innstillinger!$F$19*(20-D33) -> 23250 | F33: =Innstillinger!$F$18 -> 30000 | G33: 30000 | H33: 1.319594473 | I33: 88.58784327 | J33: =IF(I33<='Formfunksjon trykkfasthet'!$C$16,0,'Formfunksjon trykkfasthet'!$C$14*EXP('Formfunksjon trykkfasthet'!$C$15*(1-SQRT(672/('Tid-trykkfasthet'!I33-'Formfunksjon trykkfasthet'!$C$16))))) -> 38.30757463 | K33: =IF(B33<='Formfunksjon trykkfasthet'!$C$16,0,'Formfunksjon trykkfasthet'!$C$14*EXP('Formfunksjon trykkfasthet'!$C$15*(1-SQRT(672/('Tid-trykkfasthet'!B33-'Formfunksjon trykkfasthet'!$C$16))))) -> 30.26840571
B34: 56 | C34: 26 | D34: 26.25 | E34: =Innstillinger!$F$18+Innstillinger!$F$19*(20-D34) -> 23750 | F34: =Innstillinger!$F$18 -> 30000 | G34: 30000 | H34: 1.293317938 | I34: 91.17447915 | J34: =IF(I34<='Formfunksjon trykkfasthet'!$C$16,0,'Formfunksjon trykkfasthet'!$C$14*EXP('Formfunksjon trykkfasthet'!$C$15*(1-SQRT(672/('Tid-trykkfasthet'!I34-'Formfunksjon trykkfasthet'!$C$16))))) -> 38.74748307 | K34: =IF(B34<='Formfunksjon trykkfasthet'!$C$16,0,'Formfunksjon trykkfasthet'!$C$14*EXP('Formfunksjon trykkfasthet'!$C$15*(1-SQRT(672/('Tid-trykkfasthet'!B34-'Formfunksjon trykkfasthet'!$C$16))))) -> 30.88812469
B35: 58 | C35: 25.5 | D35: 25.75 | E35: =Innstillinger!$F$18+Innstillinger!$F$19*(20-D35) -> 24250 | F35: =Innstillinger!$F$18 -> 30000 | G35: 30000 | H35: 1.2674793 | I35: 93.70943775 | J35: =IF(I35<='Formfunksjon trykkfasthet'!$C$16,0,'Formfunksjon trykkfasthet'!$C$14*EXP('Formfunksjon trykkfasthet'!$C$15*(1-SQRT(672/('Tid-trykkfasthet'!I35-'Formfunksjon trykkfasthet'!$C$16))))) -> 39.16373965 | K35: =IF(B35<='Formfunksjon trykkfasthet'!$C$16,0,'Formfunksjon trykkfasthet'!$C$14*EXP('Formfunksjon trykkfasthet'!$C$15*(1-SQRT(672/('Tid-trykkfasthet'!B35-'Formfunksjon trykkfasthet'!$C$16))))) -> 31.48193432
D36: 12.75 | E36: =Innstillinger!$F$18+Innstillinger!$F$19*(20-D36) -> 37250 | F36: =Innstillinger!$F$18 -> 30000 | G36: 37250 | H36: 0.6784313267 | I36: 0 | J36: =IF(I36<='Formfunksjon trykkfasthet'!$C$16,0,'Formfunksjon trykkfasthet'!$C$14*EXP('Formfunksjon trykkfasthet'!$C$15*(1-SQRT(672/('Tid-trykkfasthet'!I36-'Formfunksjon trykkfasthet'!$C$16))))) -> 0 | K36: =IF(B36<='Formfunksjon trykkfasthet'!$C$16,0,'Formfunksjon trykkfasthet'!$C$14*EXP('Formfunksjon trykkfasthet'!$C$15*(1-SQRT(672/('Tid-trykkfasthet'!B36-'Formfunksjon trykkfasthet'!$C$16))))) -> 0
D37: 0 | E37: =Innstillinger!$F$18+Innstillinger!$F$19*(20-D37) -> 50000 | F37: =Innstillinger!$F$18 -> 30000 | G37: 50000 | H37: 0.2223072488 | I37: 0 | J37: =IF(I37<='Formfunksjon trykkfasthet'!$C$16,0,'Formfunksjon trykkfasthet'!$C$14*EXP('Formfunksjon trykkfasthet'!$C$15*(1-SQRT(672/('Tid-trykkfasthet'!I37-'Formfunksjon trykkfasthet'!$C$16))))) -> 0 | K37: =IF(B37<='Formfunksjon trykkfasthet'!$C$16,0,'Formfunksjon trykkfasthet'!$C$14*EXP('Formfunksjon trykkfasthet'!$C$15*(1-SQRT(672/('Tid-trykkfasthet'!B37-'Formfunksjon trykkfasthet'!$C$16))))) -> 0
D38: 0 | E38: =Innstillinger!$F$18+Innstillinger!$F$19*(20-D38) -> 50000 | F38: =Innstillinger!$F$18 -> 30000 | G38: 50000 | H38: 0.2223072488 | I38: 0 | J38: =IF(I38<='Formfunksjon trykkfasthet'!$C$16,0,'Formfunksjon trykkfasthet'!$C$14*EXP('Formfunksjon trykkfasthet'!$C$15*(1-SQRT(672/('Tid-trykkfasthet'!I38-'Formfunksjon trykkfasthet'!$C$16))))) -> 0 | K38: =IF(B38<='Formfunksjon trykkfasthet'!$C$16,0,'Formfunksjon trykkfasthet'!$C$14*EXP('Formfunksjon trykkfasthet'!$C$15*(1-SQRT(672/('Tid-trykkfasthet'!B38-'Formfunksjon trykkfasthet'!$C$16))))) -> 0
D39: 0 | E39: =Innstillinger!$F$18+Innstillinger!$F$19*(20-D39) -> 50000 | F39: =Innstillinger!$F$18 -> 30000 | G39: 50000 | H39: 0.2223072488 | I39: 0 | J39: =IF(I39<='Formfunksjon trykkfasthet'!$C$16,0,'Formfunksjon trykkfasthet'!$C$14*EXP('Formfunksjon trykkfasthet'!$C$15*(1-SQRT(672/('Tid-trykkfasthet'!I39-'Formfunksjon trykkfasthet'!$C$16))))) -> 0 | K39: =IF(B39<='Formfunksjon trykkfasthet'!$C$16,0,'Formfunksjon trykkfasthet'!$C$14*EXP('Formfunksjon trykkfasthet'!$C$15*(1-SQRT(672/('Tid-trykkfasthet'!B39-'Formfunksjon trykkfasthet'!$C$16))))) -> 0
D40: 0 | E40: =Innstillinger!$F$18+Innstillinger!$F$19*(20-D40) -> 50000 | F40: =Innstillinger!$F$18 -> 30000 | G40: 50000 | H40: 0.2223072488 | I40: 0 | J40: =IF(I40<='Formfunksjon trykkfasthet'!$C$16,0,'Formfunksjon trykkfasthet'!$C$14*EXP('Formfunksjon trykkfasthet'!$C$15*(1-SQRT(672/('Tid-trykkfasthet'!I40-'Formfunksjon trykkfasthet'!$C$16))))) -> 0 | K40: =IF(B40<='Formfunksjon trykkfasthet'!$C$16,0,'Formfunksjon trykkfasthet'!$C$14*EXP('Formfunksjon trykkfasthet'!$C$15*(1-SQRT(672/('Tid-trykkfasthet'!B40-'Formfunksjon trykkfasthet'!$C$16))))) -> 0
D41: 0 | E41: =Innstillinger!$F$18+Innstillinger!$F$19*(20-D41) -> 50000 | F41: =Innstillinger!$F$18 -> 30000 | G41: 50000 | H41: 0.2223072488 | I41: 0 | J41: =IF(I41<='Formfunksjon trykkfasthet'!$C$16,0,'Formfunksjon trykkfasthet'!$C$14*EXP('Formfunksjon trykkfasthet'!$C$15*(1-SQRT(672/('Tid-trykkfasthet'!I41-'Formfunksjon trykkfasthet'!$C$16))))) -> 0 | K41: =IF(B41<='Formfunksjon trykkfasthet'!$C$16,0,'Formfunksjon trykkfasthet'!$C$14*EXP('Formfunksjon trykkfasthet'!$C$15*(1-SQRT(672/('Tid-trykkfasthet'!B41-'Formfunksjon trykkfasthet'!$C$16))))) -> 0
D42: 0 | E42: =Innstillinger!$F$18+Innstillinger!$F$19*(20-D42) -> 50000 | F42: =Innstillinger!$F$18 -> 30000 | G42: 50000 | H42: 0.2223072488 | I42: 0 | J42: =IF(I42<='Formfunksjon trykkfasthet'!$C$16,0,'Formfunksjon trykkfasthet'!$C$14*EXP('Formfunksjon trykkfasthet'!$C$15*(1-SQRT(672/('Tid-trykkfasthet'!I42-'Formfunksjon trykkfasthet'!$C$16))))) -> 0 | K42: =IF(B42<='Formfunksjon trykkfasthet'!$C$16,0,'Formfunksjon trykkfasthet'!$C$14*EXP('Formfunksjon trykkfasthet'!$C$15*(1-SQRT(672/('Tid-trykkfasthet'!B42-'Formfunksjon trykkfasthet'!$C$16))))) -> 0
D43: 0 | E43: =Innstillinger!$F$18+Innstillinger!$F$19*(20-D43) -> 50000 | F43: =Innstillinger!$F$18 -> 30000 | G43: 50000 | H43: 0.2223072488 | I43: 0 | J43: =IF(I43<='Formfunksjon trykkfasthet'!$C$16,0,'Formfunksjon trykkfasthet'!$C$14*EXP('Formfunksjon trykkfasthet'!$C$15*(1-SQRT(672/('Tid-trykkfasthet'!I43-'Formfunksjon trykkfasthet'!$C$16))))) -> 0 | K43: =IF(B43<='Formfunksjon trykkfasthet'!$C$16,0,'Formfunksjon trykkfasthet'!$C$14*EXP('Formfunksjon trykkfasthet'!$C$15*(1-SQRT(672/('Tid-trykkfasthet'!B43-'Formfunksjon trykkfasthet'!$C$16))))) -> 0
D44: 0 | E44: =Innstillinger!$F$18+Innstillinger!$F$19*(20-D44) -> 50000 | F44: =Innstillinger!$F$18 -> 30000 | G44: 50000 | H44: 0.2223072488 | I44: 0 | J44: =IF(I44<='Formfunksjon trykkfasthet'!$C$16,0,'Formfunksjon trykkfasthet'!$C$14*EXP('Formfunksjon trykkfasthet'!$C$15*(1-SQRT(672/('Tid-trykkfasthet'!I44-'Formfunksjon trykkfasthet'!$C$16))))) -> 0 | K44: =IF(B44<='Formfunksjon trykkfasthet'!$C$16,0,'Formfunksjon trykkfasthet'!$C$14*EXP('Formfunksjon trykkfasthet'!$C$15*(1-SQRT(672/('Tid-trykkfasthet'!B44-'Formfunksjon trykkfasthet'!$C$16))))) -> 0
D45: 0 | E45: =Innstillinger!$F$18+Innstillinger!$F$19*(20-D45) -> 50000 | F45: =Innstillinger!$F$18 -> 30000 | G45: 50000 | H45: 0.2223072488 | I45: 0 | J45: =IF(I45<='Formfunksjon trykkfasthet'!$C$16,0,'Formfunksjon trykkfasthet'!$C$14*EXP('Formfunksjon trykkfasthet'!$C$15*(1-SQRT(672/('Tid-trykkfasthet'!I45-'Formfunksjon trykkfasthet'!$C$16))))) -> 0 | K45: =IF(B45<='Formfunksjon trykkfasthet'!$C$16,0,'Formfunksjon trykkfasthet'!$C$14*EXP('Formfunksjon trykkfasthet'!$C$15*(1-SQRT(672/('Tid-trykkfasthet'!B45-'Formfunksjon trykkfasthet'!$C$16))))) -> 0
D46: 0 | E46: =Innstillinger!$F$18+Innstillinger!$F$19*(20-D46) -> 50000 | F46: =Innstillinger!$F$18 -> 30000 | G46: 50000 | H46: 0.2223072488 | I46: 0 | J46: =IF(I46<='Formfunksjon trykkfasthet'!$C$16,0,'Formfunksjon trykkfasthet'!$C$14*EXP('Formfunksjon trykkfasthet'!$C$15*(1-SQRT(672/('Tid-trykkfasthet'!I46-'Formfunksjon trykkfasthet'!$C$16))))) -> 0 | K46: =IF(B46<='Formfunksjon trykkfasthet'!$C$16,0,'Formfunksjon trykkfasthet'!$C$14*EXP('Formfunksjon trykkfasthet'!$C$15*(1-SQRT(672/('Tid-trykkfasthet'!B46-'Formfunksjon trykkfasthet'!$C$16))))) -> 0
D47: 0 | E47: =Innstillinger!$F$18+Innstillinger!$F$19*(20-D47) -> 50000 | F47: =Innstillinger!$F$18 -> 30000 | G47: 50000 | H47: 0.2223072488 | I47: 0 | J47: =IF(I47<='Formfunksjon trykkfasthet'!$C$16,0,'Formfunksjon trykkfasthet'!$C$14*EXP('Formfunksjon trykkfasthet'!$C$15*(1-SQRT(672/('Tid-trykkfasthet'!I47-'Formfunksjon trykkfasthet'!$C$16))))) -> 0 | K47: =IF(B47<='Formfunksjon trykkfasthet'!$C$16,0,'Formfunksjon trykkfasthet'!$C$14*EXP('Formfunksjon trykkfasthet'!$C$15*(1-SQRT(672/('Tid-trykkfasthet'!B47-'Formfunksjon trykkfasthet'!$C$16))))) -> 0
D48: 0 | E48: =Innstillinger!$F$18+Innstillinger!$F$19*(20-D48) -> 50000 | F48: =Innstillinger!$F$18 -> 30000 | G48: 50000 | H48: 0.2223072488 | I48: 0 | J48: =IF(I48<='Formfunksjon trykkfasthet'!$C$16,0,'Formfunksjon trykkfasthet'!$C$14*EXP('Formfunksjon trykkfasthet'!$C$15*(1-SQRT(672/('Tid-trykkfasthet'!I48-'Formfunksjon trykkfasthet'!$C$16))))) -> 0 | K48: =IF(B48<='Formfunksjon trykkfasthet'!$C$16,0,'Formfunksjon trykkfasthet'!$C$14*EXP('Formfunksjon trykkfasthet'!$C$15*(1-SQRT(672/('Tid-trykkfasthet'!B48-'Formfunksjon trykkfasthet'!$C$16))))) -> 0
D49: 0 | E49: =Innstillinger!$F$18+Innstillinger!$F$19*(20-D49) -> 50000 | F49: =Innstillinger!$F$18 -> 30000 | G49: 50000 | H49: 0.2223072488 | I49: 0 | J49: =IF(I49<='Formfunksjon trykkfasthet'!$C$16,0,'Formfunksjon trykkfasthet'!$C$14*EXP('Formfunksjon trykkfasthet'!$C$15*(1-SQRT(672/('Tid-trykkfasthet'!I49-'Formfunksjon trykkfasthet'!$C$16))))) -> 0 | K49: =IF(B49<='Formfunksjon trykkfasthet'!$C$16,0,'Formfunksjon trykkfasthet'!$C$14*EXP('Formfunksjon trykkfasthet'!$C$15*(1-SQRT(672/('Tid-trykkfasthet'!B49-'Formfunksjon trykkfasthet'!$C$16))))) -> 0
D50: 0 | E50: =Innstillinger!$F$18+Innstillinger!$F$19*(20-D50) -> 50000 | F50: =Innstillinger!$F$18 -> 30000 | G50: 50000 | H50: 0.2223072488 | I50: 0 | J50: =IF(I50<='Formfunksjon trykkfasthet'!$C$16,0,'Formfunksjon trykkfasthet'!$C$14*EXP('Formfunksjon trykkfasthet'!$C$15*(1-SQRT(672/('Tid-trykkfasthet'!I50-'Formfunksjon trykkfasthet'!$C$16))))) -> 0 | K50: =IF(B50<='Formfunksjon trykkfasthet'!$C$16,0,'Formfunksjon trykkfasthet'!$C$14*EXP('Formfunksjon trykkfasthet'!$C$15*(1-SQRT(672/('Tid-trykkfasthet'!B50-'Formfunksjon trykkfasthet'!$C$16))))) -> 0
D51: 0 | E51: =Innstillinger!$F$18+Innstillinger!$F$19*(20-D51) -> 50000 | F51: =Innstillinger!$F$18 -> 30000 | G51: 50000 | H51: 0.2223072488 | I51: 0 | J51: =IF(I51<='Formfunksjon trykkfasthet'!$C$16,0,'Formfunksjon trykkfasthet'!$C$14*EXP('Formfunksjon trykkfasthet'!$C$15*(1-SQRT(672/('Tid-trykkfasthet'!I51-'Formfunksjon trykkfasthet'!$C$16))))) -> 0 | K51: =IF(B51<='Formfunksjon trykkfasthet'!$C$16,0,'Formfunksjon trykkfasthet'!$C$14*EXP('Formfunksjon trykkfasthet'!$C$15*(1-SQRT(672/('Tid-trykkfasthet'!B51-'Formfunksjon trykkfasthet'!$C$16))))) -> 0
D52: 0 | E52: =Innstillinger!$F$18+Innstillinger!$F$19*(20-D52) -> 50000 | F52: =Innstillinger!$F$18 -> 30000 | G52: 50000 | H52: 0.2223072488 | I52: 0 | J52: =IF(I52<='Formfunksjon trykkfasthet'!$C$16,0,'Formfunksjon trykkfasthet'!$C$14*EXP('Formfunksjon trykkfasthet'!$C$15*(1-SQRT(672/('Tid-trykkfasthet'!I52-'Formfunksjon trykkfasthet'!$C$16))))) -> 0 | K52: =IF(B52<='Formfunksjon trykkfasthet'!$C$16,0,'Formfunksjon trykkfasthet'!$C$14*EXP('Formfunksjon trykkfasthet'!$C$15*(1-SQRT(672/('Tid-trykkfasthet'!B52-'Formfunksjon trykkfasthet'!$C$16))))) -> 0
D53: 0 | E53: =Innstillinger!$F$18+Innstillinger!$F$19*(20-D53) -> 50000 | F53: =Innstillinger!$F$18 -> 30000 | G53: 50000 | H53: 0.2223072488 | I53: 0 | J53: =IF(I53<='Formfunksjon trykkfasthet'!$C$16,0,'Formfunksjon trykkfasthet'!$C$14*EXP('Formfunksjon trykkfasthet'!$C$15*(1-SQRT(672/('Tid-trykkfasthet'!I53-'Formfunksjon trykkfasthet'!$C$16))))) -> 0 | K53: =IF(B53<='Formfunksjon trykkfasthet'!$C$16,0,'Formfunksjon trykkfasthet'!$C$14*EXP('Formfunksjon trykkfasthet'!$C$15*(1-SQRT(672/('Tid-trykkfasthet'!B53-'Formfunksjon trykkfasthet'!$C$16))))) -> 0
D54: 0 | E54: =Innstillinger!$F$18+Innstillinger!$F$19*(20-D54) -> 50000 | F54: =Innstillinger!$F$18 -> 30000 | G54: 50000 | H54: 0.2223072488 | I54: 0 | J54: =IF(I54<='Formfunksjon trykkfasthet'!$C$16,0,'Formfunksjon trykkfasthet'!$C$14*EXP('Formfunksjon trykkfasthet'!$C$15*(1-SQRT(672/('Tid-trykkfasthet'!I54-'Formfunksjon trykkfasthet'!$C$16))))) -> 0 | K54: =IF(B54<='Formfunksjon trykkfasthet'!$C$16,0,'Formfunksjon trykkfasthet'!$C$14*EXP('Formfunksjon trykkfasthet'!$C$15*(1-SQRT(672/('Tid-trykkfasthet'!B54-'Formfunksjon trykkfasthet'!$C$16))))) -> 0
D55: 0 | E55: =Innstillinger!$F$18+Innstillinger!$F$19*(20-D55) -> 50000 | F55: =Innstillinger!$F$18 -> 30000 | G55: 50000 | H55: 0.2223072488 | I55: 0 | J55: =IF(I55<='Formfunksjon trykkfasthet'!$C$16,0,'Formfunksjon trykkfasthet'!$C$14*EXP('Formfunksjon trykkfasthet'!$C$15*(1-SQRT(672/('Tid-trykkfasthet'!I55-'Formfunksjon trykkfasthet'!$C$16))))) -> 0 | K55: =IF(B55<='Formfunksjon trykkfasthet'!$C$16,0,'Formfunksjon trykkfasthet'!$C$14*EXP('Formfunksjon trykkfasthet'!$C$15*(1-SQRT(672/('Tid-trykkfasthet'!B55-'Formfunksjon trykkfasthet'!$C$16))))) -> 0
D56: 0 | E56: =Innstillinger!$F$18+Innstillinger!$F$19*(20-D56) -> 50000 | F56: =Innstillinger!$F$18 -> 30000 | G56: 50000 | H56: 0.2223072488 | I56: 0 | J56: =IF(I56<='Formfunksjon trykkfasthet'!$C$16,0,'Formfunksjon trykkfasthet'!$C$14*EXP('Formfunksjon trykkfasthet'!$C$15*(1-SQRT(672/('Tid-trykkfasthet'!I56-'Formfunksjon trykkfasthet'!$C$16))))) -> 0 | K56: =IF(B56<='Formfunksjon trykkfasthet'!$C$16,0,'Formfunksjon trykkfasthet'!$C$14*EXP('Formfunksjon trykkfasthet'!$C$15*(1-SQRT(672/('Tid-trykkfasthet'!B56-'Formfunksjon trykkfasthet'!$C$16))))) -> 0
D57: 0 | E57: =Innstillinger!$F$18+Innstillinger!$F$19*(20-D57) -> 50000 | F57: =Innstillinger!$F$18 -> 30000 | G57: 50000 | H57: 0.2223072488 | I57: 0 | J57: =IF(I57<='Formfunksjon trykkfasthet'!$C$16,0,'Formfunksjon trykkfasthet'!$C$14*EXP('Formfunksjon trykkfasthet'!$C$15*(1-SQRT(672/('Tid-trykkfasthet'!I57-'Formfunksjon trykkfasthet'!$C$16))))) -> 0 | K57: =IF(B57<='Formfunksjon trykkfasthet'!$C$16,0,'Formfunksjon trykkfasthet'!$C$14*EXP('Formfunksjon trykkfasthet'!$C$15*(1-SQRT(672/('Tid-trykkfasthet'!B57-'Formfunksjon trykkfasthet'!$C$16))))) -> 0
D58: 0 | E58: =Innstillinger!$F$18+Innstillinger!$F$19*(20-D58) -> 50000 | F58: =Innstillinger!$F$18 -> 30000 | G58: 50000 | H58: 0.2223072488 | I58: 0 | J58: =IF(I58<='Formfunksjon trykkfasthet'!$C$16,0,'Formfunksjon trykkfasthet'!$C$14*EXP('Formfunksjon trykkfasthet'!$C$15*(1-SQRT(672/('Tid-trykkfasthet'!I58-'Formfunksjon trykkfasthet'!$C$16))))) -> 0 | K58: =IF(B58<='Formfunksjon trykkfasthet'!$C$16,0,'Formfunksjon trykkfasthet'!$C$14*EXP('Formfunksjon trykkfasthet'!$C$15*(1-SQRT(672/('Tid-trykkfasthet'!B58-'Formfunksjon trykkfasthet'!$C$16))))) -> 0
D59: 0 | E59: =Innstillinger!$F$18+Innstillinger!$F$19*(20-D59) -> 50000 | F59: =Innstillinger!$F$18 -> 30000 | G59: 50000 | H59: 0.2223072488 | I59: 0 | J59: =IF(I59<='Formfunksjon trykkfasthet'!$C$16,0,'Formfunksjon trykkfasthet'!$C$14*EXP('Formfunksjon trykkfasthet'!$C$15*(1-SQRT(672/('Tid-trykkfasthet'!I59-'Formfunksjon trykkfasthet'!$C$16))))) -> 0 | K59: =IF(B59<='Formfunksjon trykkfasthet'!$C$16,0,'Formfunksjon trykkfasthet'!$C$14*EXP('Formfunksjon trykkfasthet'!$C$15*(1-SQRT(672/('Tid-trykkfasthet'!B59-'Formfunksjon trykkfasthet'!$C$16))))) -> 0
D60: =+(C59+C60)/2 -> 0 | E60: =Innstillinger!$F$18+Innstillinger!$F$19*(20-D60) -> 50000 | F60: =Innstillinger!$F$18 -> 30000 | G60: =IF(D60>20,F60,E60) -> 50000 | H60: =+EXP((G60/8.314)*(1/293-1/(273+D60))) -> 0.2223072488 | I60: 0 | J60: =IF(I60<='Formfunksjon trykkfasthet'!$C$16,0,'Formfunksjon trykkfasthet'!$C$14*EXP('Formfunksjon trykkfasthet'!$C$15*(1-SQRT(672/('Tid-trykkfasthet'!I60-'Formfunksjon trykkfasthet'!$C$16))))) -> 0 | K60: =IF(B60<='Formfunksjon trykkfasthet'!$C$16,0,'Formfunksjon trykkfasthet'!$C$14*EXP('Formfunksjon trykkfasthet'!$C$15*(1-SQRT(672/('Tid-trykkfasthet'!B60-'Formfunksjon trykkfasthet'!$C$16))))) -> 0
D61: 0 | E61: =Innstillinger!$F$18+Innstillinger!$F$19*(20-D61) -> 50000 | F61: =Innstillinger!$F$18 -> 30000 | G61: 50000 | H61: 0.2223072488 | I61: 0 | J61: =IF(I61<='Formfunksjon trykkfasthet'!$C$16,0,'Formfunksjon trykkfasthet'!$C$14*EXP('Formfunksjon trykkfasthet'!$C$15*(1-SQRT(672/('Tid-trykkfasthet'!I61-'Formfunksjon trykkfasthet'!$C$16))))) -> 0 | K61: =IF(B61<='Formfunksjon trykkfasthet'!$C$16,0,'Formfunksjon trykkfasthet'!$C$14*EXP('Formfunksjon trykkfasthet'!$C$15*(1-SQRT(672/('Tid-trykkfasthet'!B61-'Formfunksjon trykkfasthet'!$C$16))))) -> 0
D62: 0 | E62: =Innstillinger!$F$18+Innstillinger!$F$19*(20-D62) -> 50000 | F62: =Innstillinger!$F$18 -> 30000 | G62: 50000 | H62: 0.2223072488 | I62: 0 | J62: =IF(I62<='Formfunksjon trykkfasthet'!$C$16,0,'Formfunksjon trykkfasthet'!$C$14*EXP('Formfunksjon trykkfasthet'!$C$15*(1-SQRT(672/('Tid-trykkfasthet'!I62-'Formfunksjon trykkfasthet'!$C$16))))) -> 0 | K62: =IF(B62<='Formfunksjon trykkfasthet'!$C$16,0,'Formfunksjon trykkfasthet'!$C$14*EXP('Formfunksjon trykkfasthet'!$C$15*(1-SQRT(672/('Tid-trykkfasthet'!B62-'Formfunksjon trykkfasthet'!$C$16))))) -> 0
D63: 0 | E63: =Innstillinger!$F$18+Innstillinger!$F$19*(20-D63) -> 50000 | F63: =Innstillinger!$F$18 -> 30000 | G63: 50000 | H63: 0.2223072488 | I63: 0 | J63: =IF(I63<='Formfunksjon trykkfasthet'!$C$16,0,'Formfunksjon trykkfasthet'!$C$14*EXP('Formfunksjon trykkfasthet'!$C$15*(1-SQRT(672/('Tid-trykkfasthet'!I63-'Formfunksjon trykkfasthet'!$C$16))))) -> 0 | K63: =IF(B63<='Formfunksjon trykkfasthet'!$C$16,0,'Formfunksjon trykkfasthet'!$C$14*EXP('Formfunksjon trykkfasthet'!$C$15*(1-SQRT(672/('Tid-trykkfasthet'!B63-'Formfunksjon trykkfasthet'!$C$16))))) -> 0
D64: 0 | E64: =Innstillinger!$F$18+Innstillinger!$F$19*(20-D64) -> 50000 | F64: =Innstillinger!$F$18 -> 30000 | G64: 50000 | H64: 0.2223072488 | I64: 0 | J64: =IF(I64<='Formfunksjon trykkfasthet'!$C$16,0,'Formfunksjon trykkfasthet'!$C$14*EXP('Formfunksjon trykkfasthet'!$C$15*(1-SQRT(672/('Tid-trykkfasthet'!I64-'Formfunksjon trykkfasthet'!$C$16))))) -> 0 | K64: =IF(B64<='Formfunksjon trykkfasthet'!$C$16,0,'Formfunksjon trykkfasthet'!$C$14*EXP('Formfunksjon trykkfasthet'!$C$15*(1-SQRT(672/('Tid-trykkfasthet'!B64-'Formfunksjon trykkfasthet'!$C$16))))) -> 0
D65: 0 | E65: =Innstillinger!$F$18+Innstillinger!$F$19*(20-D65) -> 50000 | F65: =Innstillinger!$F$18 -> 30000 | G65: 50000 | H65: 0.2223072488 | I65: 0 | J65: =IF(I65<='Formfunksjon trykkfasthet'!$C$16,0,'Formfunksjon trykkfasthet'!$C$14*EXP('Formfunksjon trykkfasthet'!$C$15*(1-SQRT(672/('Tid-trykkfasthet'!I65-'Formfunksjon trykkfasthet'!$C$16))))) -> 0 | K65: =IF(B65<='Formfunksjon trykkfasthet'!$C$16,0,'Formfunksjon trykkfasthet'!$C$14*EXP('Formfunksjon trykkfasthet'!$C$15*(1-SQRT(672/('Tid-trykkfasthet'!B65-'Formfunksjon trykkfasthet'!$C$16))))) -> 0
D66: 0 | E66: =Innstillinger!$F$18+Innstillinger!$F$19*(20-D66) -> 50000 | F66: =Innstillinger!$F$18 -> 30000 | G66: 50000 | H66: 0.2223072488 | I66: 0 | J66: =IF(I66<='Formfunksjon trykkfasthet'!$C$16,0,'Formfunksjon trykkfasthet'!$C$14*EXP('Formfunksjon trykkfasthet'!$C$15*(1-SQRT(672/('Tid-trykkfasthet'!I66-'Formfunksjon trykkfasthet'!$C$16))))) -> 0 | K66: =IF(B66<='Formfunksjon trykkfasthet'!$C$16,0,'Formfunksjon trykkfasthet'!$C$14*EXP('Formfunksjon trykkfasthet'!$C$15*(1-SQRT(672/('Tid-trykkfasthet'!B66-'Formfunksjon trykkfasthet'!$C$16))))) -> 0
D67: 0 | E67: =Innstillinger!$F$18+Innstillinger!$F$19*(20-D67) -> 50000 | F67: =Innstillinger!$F$18 -> 30000 | G67: 50000 | H67: 0.2223072488 | I67: 0 | J67: =IF(I67<='Formfunksjon trykkfasthet'!$C$16,0,'Formfunksjon trykkfasthet'!$C$14*EXP('Formfunksjon trykkfasthet'!$C$15*(1-SQRT(672/('Tid-trykkfasthet'!I67-'Formfunksjon trykkfasthet'!$C$16))))) -> 0 | K67: =IF(B67<='Formfunksjon trykkfasthet'!$C$16,0,'Formfunksjon trykkfasthet'!$C$14*EXP('Formfunksjon trykkfasthet'!$C$15*(1-SQRT(672/('Tid-trykkfasthet'!B67-'Formfunksjon trykkfasthet'!$C$16))))) -> 0
D68: 0 | E68: =Innstillinger!$F$18+Innstillinger!$F$19*(20-D68) -> 50000 | F68: =Innstillinger!$F$18 -> 30000 | G68: 50000 | H68: 0.2223072488 | I68: 0 | J68: =IF(I68<='Formfunksjon trykkfasthet'!$C$16,0,'Formfunksjon trykkfasthet'!$C$14*EXP('Formfunksjon trykkfasthet'!$C$15*(1-SQRT(672/('Tid-trykkfasthet'!I68-'Formfunksjon trykkfasthet'!$C$16))))) -> 0 | K68: =IF(B68<='Formfunksjon trykkfasthet'!$C$16,0,'Formfunksjon trykkfasthet'!$C$14*EXP('Formfunksjon trykkfasthet'!$C$15*(1-SQRT(672/('Tid-trykkfasthet'!B68-'Formfunksjon trykkfasthet'!$C$16))))) -> 0

Sheet Formfunksjon trykkfasthet
B2: Tilpasning av formfunksjon - trykkfasthet
B5: Tid (døgn) | C5: Tid (timer) | D5: FIB-modell | E5: Målt trykk-fasthet | F5: Vekt ved avvik | G5: Dyv+1
B6: =C6/24 -> 0.3278335759 | C6: =C16 -> 7.868005822 | D6: =IF(C6>C$16,$C$14*EXP($C$15*(1-SQRT(672/(C6-$C$16)))),0) -> 0 | E6: 0 | F6: - | G6: -
B7: =C7/24 -> 0.5 | C7: 12 | D7: =IF(C7>C$16,$C$14*EXP($C$15*(1-SQRT(672/(C7-$C$16)))),0) -> 3.158455345 | E7: 3 | F7: 1 | G7: =F7*ABS((E7-D7)^2) -> 0.02510809642
B8: 1 | C8: 24 | D8: =IF(C8>C$16,$C$14*EXP($C$15*(1-SQRT(672/(C8-$C$16)))),0) -> 15.53436518 | E8: 16 | F8: 1 | G8: =F8*ABS((E8-D8)^2) -> 0.2168157872
B9: 3 | C9: 72 | D9: 35.04724422 | E9: 34 | F9: 1 | G9: 1.096720458
B10: 7 | C10: 168 | D10: 47.33623447 | E10: 48 | F10: 1 | G10: 0.4405846726
B11: 14 | C11: 336 | D11: 55.33697756 | E11: 56 | F11: 1 | G11: 0.4395987589
B12: 28 | C12: 672 | D12: =IF(C12>C$16,$C$14*EXP($C$15*(1-SQRT(672/(C12-$C$16)))),0) -> 61.61889426 | E12: 61 | F12: 1 | G12: 0.3830301068
B14: fc28 | C14: 61.71100317
B15: s | C15: 0.2529086532
B16: t0 | C16: 7.868005822
B17: SDy2 | C17: =SUM(G7:G12) -> 2.60185788
B18: R2 | C18: =CORREL(D7:D12,E7:E12) -> 0.9995111843

Sheet Innstillinger
B3: Modenhet
B9: Hastighetsfunksjonen
B16: Temperaturfølsomhet
E18: A | F18: 30000
E19: B | F19: 1000
